bitfinex/quotes_ETHUSD_20241215
["timestamp","ask_amount","ask_price","bid_price","bid_amount"]
[1734251840134,0.03437642,3857.3,3856.6,3.0]
[1734251840342,0.03437642,3857.3,3856.6,3.35755065]
[1734251840592,0.2189,3857.4,3856.6,0.35755065]
[1734251840980,0.500025,3857.4,3856.3,3.0]
[1734251841181,0.03437642,3857.3,3856.3,3.0]
[1734251841377,0.2189,3857.2,3856.3,3.0]
[1734251841854,0.034308,3857.1,3856.4,3.35755065]
[1734251842054,0.2189,3857.2,3856.2,2.12091804]
[1734251842270,0.2189,3857.2,3856.3,3.0]
[1734251842470,0.2189,3857.2,3856.2,2.12091804]
[1734251843098,0.2189,3856.8,3855.9,3.0]
[1734251843473,0.2189,3856.8,3855.8,5.12091804]
[1734251843790,2.81177,3856.8,3855.8,2.12091804]
[1734251844160,2.59295,3856.6,3855.9,0.50893143]
[1734251844368,0.2189,3856.5,3855.5,0.824]
[1734251844689,0.2189,3856.5,3855.4,3.19387061]
[1734251844690,0.2189,3856.5,3855.4,2.12091804]
[1734251844843,0.2189,3856.5,3855.7,0.50722082]
[1734251845200,0.2189,3856.5,3855.4,2.12091804]
[1734251845405,0.2189,3856.5,3855.5,4.25027777]
[1734251845582,2.81206,3856.3,3855.4,2.12091804]
[1734251846489,0.2189,3856.3,3855.5,3.51174232]
[1734251846712,0.2189,3856.7,3855.8,5.12091804]
[1734251846915,0.2189,3856.7,3855.8,2.12091804]
[1734251847868,0.2189,3856.7,3855.6,0.824]
[1734251849210,0.2189,3856.7,3855.5,4.24340587]
[1734251849382,2.59292,3856.7,3855.5,4.24340587]
[1734251849585,0.2189,3856.6,3855.5,6.83709587]
[1734251850116,0.2189,3856.6,3855.5,4.24340587]
[1734251851074,0.2189,3856.4,3855.1,3.0]
[1734251851403,0.259292,3856.7,3855.0,2.12091804]
[1734251851404,2.59331,3856.1,3855.0,2.12091804]
[1734251851724,0.2189,3856.0,3855.0,2.12091804]
[1734251852218,2.59338,3856.0,3855.0,0.5063501]
[1734251852366,0.2189,3855.9,3855.0,0.5063501]
[1734251852875,0.2189,3855.9,3855.0,0.84097991]
[1734251853084,0.2189,3855.9,3855.1,3.32562355]
[1734251854192,0.2189,3855.9,3855.2,3.0]
[1734251854646,0.2189,3855.9,3855.1,3.73166355]
[1734251854848,0.2189,3855.9,3854.6,2.12091804]
[1734251855163,0.2189,3855.7,3854.7,3.0]
[1734251855848,0.2189,3855.7,3854.8,0.52476289]
[1734251856833,0.2189,3855.7,3855.0,3.0]
[1734251857000,0.2189,3855.7,3855.2,3.0]
[1734251857200,0.2189,3855.7,3855.0,0.39703374]
[1734251858250,0.2189,3855.7,3854.8,0.52476289]
[1734251858603,0.2189,3855.7,3855.0,2.12091804]
[1734251859336,0.2189,3855.7,3855.1,3.0]
[1734251860456,0.2189,3855.7,3855.0,0.39703374]
[1734251861504,0.2189,3855.7,3854.8,0.52476289]
[1734251861733,0.2189,3855.7,3854.8,3.52476289]
[1734251862298,0.2189,3855.7,3854.8,0.52476289]
[1734251862785,0.2189,3855.6,3854.8,0.52476289]
[1734251863279,0.2189,3855.6,3854.6,3.39703374]
[1734251863488,0.2189,3855.6,3854.6,0.39703374]
[1734251863631,0.2189,3855.5,3854.6,0.39703374]
[1734251865266,0.2189,3855.5,3854.8,3.0]
[1734251865486,0.2189,3855.5,3854.8,2.59415]
[1734251865692,0.2189,3855.5,3854.9,3.0]
[1734251866967,0.2189,3855.5,3854.6,0.39703374]
[1734251867165,0.2189,3855.5,3854.6,3.39703374]
[1734251873834,0.2189,3855.5,3854.6,5.99132374]
[1734251874033,0.2189,3855.5,3854.7,3.0]
[1734251874712,0.2189,3855.5,3854.6,0.39703374]
[1734251875080,0.2189,3855.4,3854.5,0.51902925]
[1734251876710,0.2189,3855.4,3854.4,3.0]
[1734251876932,0.2189,3855.4,3854.4,3.52751138]
[1734251879482,0.2189,3855.4,3854.4,0.52751138]
[1734251879637,0.2189,3855.4,3854.4,0.92454512]
[1734251879970,0.2189,3855.3,3854.4,0.92454512]
[1734251881119,0.2189,3855.9,3854.7,2.59422]
[1734251881350,0.2189,3855.9,3854.7,0.73166355]
[1734251881658,0.2189,3855.8,3854.9,2.59404]
[1734251881867,0.2189,3855.8,3855.2,3.0]
[1734251882183,0.2189,3855.8,3855.4,3.0]
[1734251884929,2.59288,3856.8,3855.4,5.59376]
[1734251885274,0.2189,3856.6,3855.4,5.59376]
[1734251885477,0.2189,3856.6,3855.3,0.7975]
[1734251885640,0.2189,3856.6,3855.6,2.59359]
[1734251885854,0.2189,3856.6,3855.7,3.0]
[1734251886677,0.2189,3856.6,3855.3,3.7975]
[1734251886849,0.2189,3856.6,3855.7,2.59354]
[1734251887057,0.5259948,3856.6,3855.7,2.59354]
[1734251887940,0.5259948,3856.6,3855.4,2.59371]
[1734251888204,0.2189,3856.5,3855.5,3.0]
[1734251888950,0.2189,3856.3,3855.2,4.60367954]
[1734251889150,0.2189,3856.2,3855.2,3.12461697]
[1734251889350,0.2189,3856.2,3855.3,1.25264573]
[1734251889545,0.2189,3856.2,3855.4,3.84626924]
[1734251889749,0.2189,3856.2,3855.5,3.0]
[1734251890357,0.2189,3856.2,3855.6,3.0]
[1734251891908,0.2189,3856.2,3855.7,2.59352]
[1734251892283,0.2189,3856.2,3855.6,3.0]
[1734251892515,0.2189,3856.2,3855.7,3.0]
[1734251893363,0.2189,3856.2,3855.5,3.0]
[1734251893567,0.2189,3856.2,3855.3,4.07295257]
[1734251893765,0.2189,3856.1,3855.4,1.25302776]
[1734251894004,0.2189,3856.1,3855.2,3.0]
[1734251894303,0.2189,3856.1,3855.3,1.25342301]
[1734251894514,0.2189,3856.1,3855.2,3.0]
[1734251894679,0.2189,3856.1,3855.3,1.25339697]
[1734251894885,0.2189,3856.1,3855.2,3.0]
[1734251895116,0.2189,3856.1,3855.3,1.25337169]
[1734251895411,0.2189,3856.1,3855.2,3.0]
[1734251895603,0.2189,3856.1,3855.3,1.25356356]
[1734251895825,0.2189,3856.1,3855.2,3.52500433]
[1734251896047,0.2189,3856.1,3855.3,1.25361963]
[1734251896350,0.2189,3856.1,3855.2,3.52500433]
[1734251896622,0.2189,3856.1,3855.3,1.25375715]
[1734251896838,0.2189,3856.1,3855.2,3.52500433]
[1734251897012,0.2189,3856.0,3855.3,1.25376541]
[1734251897184,0.2189,3856.0,3855.2,3.52500433]
[1734251897387,0.2189,3856.0,3855.3,1.25368594]
[1734251897624,0.2189,3856.0,3855.2,3.52500433]
[1734251898425,0.2189,3856.0,3855.2,3.0]
[1734251898612,0.2189,3856.0,3855.1,2.5939]
[1734251898613,0.2189,3855.9,3855.0,1.58535555]
[1734251898799,0.2189,3855.9,3855.1,4.25361409]
[1734251899006,0.2189,3855.9,3854.9,4.5821404]
[1734251899200,0.2189,3855.9,3855.0,1.2536639]
[1734251899413,0.2189,3855.9,3854.9,4.5821404]
[1734251899414,0.2189,3855.9,3855.1,1.2536639]
[1734251899623,0.2189,3855.8,3854.8,2.63835908]
[1734251899791,0.2189,3855.7,3854.9,1.25383783]
[1734251899991,0.2189,3855.7,3854.8,1.04595092]
[1734251900226,0.2189,3855.7,3854.6,4.00187238]
[1734251900431,0.2189,3855.6,3854.7,1.25400292]
[1734251900627,0.2189,3855.4,3854.6,0.33462981]
[1734251900991,0.2189,3855.4,3854.5,1.07295257]
[1734251901738,0.2189,3855.4,3854.5,5.32708516]
[1734251901907,0.2189,3855.4,3854.6,1.25413259]
[1734251902105,0.2189,3855.4,3854.7,1.25413259]
[1734251902333,0.2189,3855.4,3854.5,4.07295257]
[1734251902497,0.2189,3855.4,3854.6,4.25393402]
[1734251902828,0.2189,3855.4,3854.5,4.07295257]
[1734251903032,0.2189,3855.4,3854.6,1.25391674]
[1734251903234,0.2189,3855.4,3854.5,4.07295257]
[1734251903419,0.2189,3855.4,3854.6,1.25388228]
[1734251903728,0.2189,3855.4,3854.5,3.0]
[1734251903899,0.2189,3855.4,3854.6,1.25388093]
[1734251904100,0.2189,3855.4,3854.5,3.0]
[1734251904101,0.500154,3855.4,3854.5,3.0]
[1734251904430,2.59398,3855.1,3854.3,1.07295257]
[1734251904740,2.59398,3855.1,3854.1,1.07295257]
[1734251904741,0.2189,3855.0,3854.1,1.07295257]
[1734251904889,0.2189,3855.0,3854.0,1.07295257]
[1734251905240,0.2189,3855.0,3854.1,0.52158669]
[1734251905445,0.2189,3854.9,3854.1,0.52158669]
[1734251905648,0.2189,3854.7,3854.1,0.52158669]
[1734251911781,0.2189,3854.7,3854.1,3.8562165]
[1734251911994,0.2189,3854.7,3854.1,0.52158669]
[1734251918277,0.21577936,3854.7,3854.1,0.52158669]
[1734251919226,0.21577936,3854.7,3853.4,1.07295257]
[1734251919380,0.21577936,3854.7,3853.2,2.42533993]
[1734251919381,3.21428408,3855.3,3853.3,2.59517]
[1734251919585,2.59436,3854.6,3853.3,2.59517]
[1734251920289,2.5944,3854.5,3853.3,2.59517]
[1734251920910,2.59444,3854.4,3853.1,5.1250146]
[1734251921225,0.2158,3854.3,3853.3,1.0468377]
[1734251921834,0.2158,3854.2,3853.1,1.0468377]
[1734251921992,0.2158,3854.1,3853.1,1.0468377]
[1734251922396,0.2158,3854.1,3853.3,1.0468377]
[1734251922595,0.2158,3854.1,3853.7,1.0468377]
[1734251922808,0.2158,3854.1,3853.7,3.6417277]
[1734251923277,0.2158,3854.1,3853.7,1.0468377]
[1734251923923,0.2158,3854.1,3853.7,3.6417077]
[1734251925524,0.2158,3854.1,3853.7,1.0468377]
[1734251927315,0.2158,3854.1,3853.4,1.0468377]
[1734251927534,0.2158,3854.1,3853.4,3.0]
[1734251927743,0.2158,3854.1,3853.1,4.0468377]
[1734251928022,0.2158,3854.1,3853.2,3.0]
[1734251928695,0.28103,3854.1,3853.2,3.0]
[1734251928898,0.2158,3854.0,3853.2,3.0]
[1734251932190,0.2158,3854.0,3853.1,1.0468377]
[1734251932603,0.2158,3854.0,3853.1,4.0468377]
[1734251933426,0.2158,3854.0,3853.1,1.0468377]
[1734251934014,0.2158,3854.0,3853.1,4.0468377]
[1734251935241,0.2158,3854.0,3853.2,3.0]
[1734251936745,0.2158,3854.0,3853.3,3.0]
[1734251938846,0.2158,3854.0,3853.4,3.0]
[1734251939810,0.2158,3854.0,3853.3,3.0]
[1734251940108,0.2158,3854.0,3853.4,2.59508]
[1734251941246,0.2158,3854.0,3853.5,2.59503]
[1734251942271,0.2158,3854.0,3853.8,1.0468377]
[1734251942405,0.2158,3854.5,3853.9,2.59477]
[1734251942609,2.67160323,3855.6,3854.3,1.0468377]
[1734251942610,0.2158,3854.8,3854.3,1.0468377]
[1734251942810,0.2158,3854.8,3854.4,2.59438]
[1734251943056,0.2158,3854.8,3854.3,1.0468377]
[1734251943258,0.2158,3854.8,3854.3,4.0468377]
[1734251943711,0.2158,3854.8,3854.6,2.59429]
[1734251944814,0.2158,3855.6,3854.8,2.59413]
[1734251945515,0.2158,3855.6,3854.9,1.0468377]
[1734251945860,0.2158,3855.6,3855.4,2.59376]
[1734251946013,0.2158,3856.1,3855.6,2.59361]
[1734251946210,0.2158,3856.1,3855.7,2.59355]
[1734251946533,0.2158,3856.1,3855.7,2.5935]
[1734251948257,0.2158,3856.1,3855.4,3.6405677]
[1734251948464,0.2158,3856.1,3855.5,2.59366]
[1734251948666,0.2158,3856.1,3855.4,1.0468377]
[1734251948860,0.2158,3856.1,3855.7,2.59353]
[1734251949242,0.2158,3856.1,3855.8,2.59346]
[1734251949923,0.2158,3856.1,3855.7,2.5935]
[1734251950148,0.2158,3856.1,3855.3,2.59381]
[1734251950149,0.2158,3856.1,3855.4,3.0]
[1734251950367,0.2158,3856.1,3855.8,2.59346]
[1734251953378,0.2158,3856.1,3855.2,3.0]
[1734251953541,0.2158,3856.1,3855.6,2.59361]
[1734251954055,0.2158,3856.1,3855.2,3.0]
[1734251954378,0.2158,3856.1,3855.7,2.59354]
[1734251958679,0.2158,3856.1,3855.2,5.59388]
[1734251958886,0.2158,3856.1,3855.2,3.0]
[1734251959091,0.2158,3856.1,3855.5,2.59367]
[1734251959750,0.51970409,3857.3,3855.9,2.12400706]
[1734251959952,0.2158,3857.1,3855.9,2.12400706]
[1734251960664,0.2158,3857.1,3856.0,2.59332]
[1734251962374,0.2158,3857.1,3856.1,2.59327]
[1734251962678,0.2158,3857.1,3856.2,2.59318]
[1734251962877,0.2158,3857.1,3855.9,2.12400706]
[1734251963709,0.2158,3857.1,3856.3,2.12400706]
[1734251963927,0.2158,3857.1,3856.4,3.794]
[1734251964213,3.68098948,3858.5,3856.8,2.5928]
[1734251964214,0.2158,3857.8,3856.8,2.5928]
[1734251964372,0.19285022,3857.7,3856.8,2.5928]
[1734251964573,0.2158,3857.9,3856.8,2.5928]
[1734251964782,0.2158,3857.9,3856.8,2.59277]
[1734251965173,0.2158,3857.9,3857.0,2.59265]
[1734251966997,0.19284811,3857.8,3856.7,2.59285]
[1734251967239,0.2158,3857.7,3856.7,2.59285]
[1734251967401,0.2158,3857.7,3856.8,2.59282]
[1734251967607,0.2158,3857.7,3856.4,3.794]
[1734251967779,0.2158,3857.7,3856.9,2.59274]
[1734251968880,0.2158,3857.7,3856.4,3.794]
[1734251969075,0.2158,3857.7,3857.0,2.59268]
[1734251969276,0.00984118,3858.1,3857.4,1.04484392]
[1734251969611,0.2158,3858.0,3857.7,3.63705392]
[1734251970023,0.00984118,3858.1,3857.8,2.59214]
[1734251970775,0.00984118,3858.1,3857.7,1.04484392]
[1734251971282,0.00984118,3858.1,3857.6,2.59227]
[1734251972077,0.00984118,3858.1,3857.7,2.59221]
[1734251973301,0.00984118,3858.1,3857.6,3.0]
[1734251974513,0.2158,3858.2,3857.6,3.0]
[1734251976475,0.2158,3858.2,3857.6,2.59227]
[1734251977112,0.2158,3858.2,3857.4,3.0]
[1734251977454,0.2158,3858.2,3857.1,0.7897]
[1734251977753,0.19312903,3858.1,3857.3,3.0]
[1734251977938,0.19312903,3858.1,3856.9,2.12160014]
[1734251977939,0.2158,3858.0,3856.9,4.71432014]
[1734251978516,0.19315825,3857.9,3856.9,4.71432014]
[1734251978853,0.19315825,3857.8,3856.9,4.71432014]
[1734251979025,0.2158,3858.0,3856.9,4.71432014]
[1734251979230,0.19315793,3857.9,3857.1,3.0]
[1734251979427,0.2158,3858.0,3857.3,2.59248]
[1734251980443,0.2158,3858.0,3857.1,2.59261]
[1734251980773,0.2158,3858.0,3857.2,3.0]
[1734251981069,0.2158,3858.0,3857.0,2.12160014]
[1734251981070,0.19316743,3857.9,3857.0,2.12160014]
[1734251981363,0.19316743,3857.8,3857.1,3.0]
[1734251981534,0.2158,3858.0,3857.1,3.0]
[1734251981715,0.19319598,3857.9,3857.1,3.0]
[1734251981912,0.19319727,3857.8,3857.1,3.0]
[1734251982154,0.2158,3858.0,3857.1,3.0]
[1734251982386,0.19319611,3857.9,3857.1,3.0]
[1734251982558,0.19319611,3857.8,3857.1,3.0]
[1734251982722,0.2158,3857.6,3857.1,3.0]
[1734251983578,0.2158,3857.6,3857.2,3.0]
[1734251983855,0.52494989,3859.0,3857.2,2.59251]
[1734251983856,0.2158,3858.5,3857.2,2.59251]
[1734251984053,2.59163,3858.6,3857.2,2.59251]
[1734251984054,0.2158,3858.3,3857.2,2.59251]
[1734251984256,0.19324329,3858.2,3857.2,2.59251]
[1734251984567,0.19324329,3858.2,3856.9,3.0]
[1734251984568,0.2158,3858.0,3856.8,3.0]
[1734251984775,0.2158,3857.8,3856.8,3.0]
[1734251985066,0.30010033,3857.9,3856.8,3.0]
[1734251985067,0.2158,3857.6,3856.8,3.0]
[1734251985247,0.19328469,3857.5,3856.8,3.0]
[1734251985457,0.2158,3857.6,3856.8,3.0]
[1734251985623,0.19333917,3857.5,3856.8,3.0]
[1734251985824,0.2158,3857.6,3856.8,3.0]
[1734251986021,0.1933399,3857.5,3856.8,3.0]
[1734251986261,0.1933399,3857.4,3856.8,3.0]
[1734251986568,0.2158,3857.6,3856.8,3.0]
[1734251986753,0.2158,3857.4,3856.6,3.0]
[1734251986957,0.2158,3857.2,3856.3,3.0]
[1734251987204,0.19339809,3857.1,3856.3,3.0]
[1734251987368,4.71339014,3858.4,3856.3,3.0]
[1734251987369,0.40919809,3857.0,3856.3,3.0]
[1734251987700,0.2158,3857.0,3856.3,3.0]
[1734251988505,0.19354265,3856.9,3856.3,3.0]
[1734251988704,0.2158,3857.0,3856.3,3.0]
[1734251989405,0.19363001,3856.9,3856.3,3.0]
[1734251989623,0.19363001,3856.8,3856.3,3.0]
[1734251989763,0.2158,3857.0,3856.3,3.0]
[1734251989972,0.19363619,3856.9,3856.3,3.0]
[1734251990177,0.19363619,3856.8,3856.3,3.0]
[1734251990372,0.2158,3857.0,3856.3,3.0]
[1734251990573,0.19366003,3856.9,3856.3,3.0]
[1734251990776,0.19366003,3856.8,3856.3,3.0]
[1734251990973,0.2158,3857.0,3856.3,3.0]
[1734251991172,0.19366038,3856.9,3856.5,1.04517485]
[1734251991405,0.19366038,3856.8,3856.5,1.04517485]
[1734251991606,0.2158,3857.0,3856.5,1.04517485]
[1734251991817,0.2158,3857.0,3856.3,3.0]
[1734251991818,0.19368953,3856.9,3856.8,1.04517485]
[1734251992174,0.2158,3857.0,3856.8,1.04517485]
[1734251992479,0.19372474,3856.9,3856.8,1.04517485]
[1734251993417,0.2158,3857.0,3856.8,1.04517485]
[1734251996283,0.2158,3857.5,3856.8,1.04517485]
[1734251996515,0.19371223,3857.4,3856.8,1.04517485]
[1734251996838,0.19371223,3857.3,3856.8,3.63798485]
[1734251996979,0.2158,3857.5,3856.8,3.63798485]
[1734251997175,0.19370158,3857.4,3856.8,3.63798485]
[1734251997437,0.19370158,3857.3,3856.8,3.63798485]
[1734251997666,0.2158,3857.5,3856.8,3.63798485]
[1734251997833,0.19370605,3857.4,3856.8,3.63798485]
[1734251998013,0.2158,3857.5,3856.8,3.63798485]
[1734251998014,0.19370605,3857.3,3856.8,3.63798485]
[1734251998372,0.2158,3857.5,3856.8,3.63798485]
[1734251998518,0.19370883,3857.4,3856.8,3.63798485]
[1734251998713,0.19370883,3857.3,3856.8,3.63798485]
[1734251998915,0.2158,3857.5,3856.8,3.63798485]
[1734251999115,0.1937089,3857.4,3856.8,3.63798485]
[1734251999357,0.1937089,3857.3,3856.8,3.63798485]
[1734251999560,0.2158,3857.5,3856.8,3.63798485]
[1734251999723,0.19370581,3857.4,3856.8,3.63798485]
[1734252000039,0.19370581,3857.3,3856.8,3.63798485]
[1734252000244,0.2158,3857.5,3856.8,3.63798485]
[1734252000462,0.19371529,3857.4,3856.8,3.63798485]
[1734252000676,0.2158,3857.5,3856.8,3.63798485]
[1734252000990,0.19371653,3857.4,3856.8,3.63798485]
[1734252001450,0.19371653,3857.3,3856.8,3.63798485]
[1734252001632,0.2158,3857.5,3856.8,3.63798485]
[1734252001838,0.19374072,3857.4,3856.8,3.63798485]
[1734252002139,0.2158,3857.5,3856.8,3.63798485]
[1734252002140,0.19374072,3857.3,3856.8,3.63798485]
[1734252002476,0.19377226,3857.2,3856.8,3.63798485]
[1734252002760,0.2158,3857.5,3856.5,1.04517485]
[1734252002926,0.47458415,3857.4,3856.5,1.04517485]
[1734252003126,0.19377415,3857.3,3857.1,1.04517485]
[1734252003328,0.2158,3857.5,3857.1,1.04517485]
[1734252003528,0.19379889,3857.4,3857.1,1.04517485]
[1734252003744,0.2158,3858.0,3857.1,1.04517485]
[1734252004063,0.19379355,3857.9,3857.1,1.80857485]
[1734252004272,0.19379355,3857.8,3857.1,1.80857485]
[1734252004473,0.19379355,3857.7,3857.1,1.80857485]
[1734252004766,0.19379355,3857.6,3857.1,1.80857485]
[1734252004965,0.19379355,3857.5,3857.1,1.80857485]
[1734252005131,0.2158,3858.0,3857.1,1.80857485]
[1734252005339,0.19383193,3857.9,3857.1,1.80857485]
[1734252005548,0.19383193,3857.8,3857.1,1.80857485]
[1734252005862,0.19386176,3857.7,3857.1,1.80857485]
[1734252006034,0.19386176,3857.6,3857.1,1.80857485]
[1734252006234,0.19386176,3857.5,3857.1,1.80857485]
[1734252006438,0.60550095,3858.0,3857.1,1.80857485]
[1734252006619,0.67389766,3857.9,3857.1,1.80857485]
[1734252006815,0.47999297,3857.9,3857.1,1.80857485]
[1734252007048,0.19390481,3857.8,3857.1,1.80857485]
[1734252007270,0.19390481,3857.7,3857.1,1.80857485]
[1734252007468,0.19390481,3857.6,3857.1,1.80857485]
[1734252007620,0.19390481,3857.5,3857.1,1.80857485]
[1734252007819,0.19390481,3857.4,3857.1,1.04517485]
[1734252008019,0.19395593,3857.3,3857.1,1.04517485]
[1734252008266,0.2158,3857.5,3856.8,4.04517485]
[1734252008449,0.2158,3857.5,3856.8,1.04517485]
[1734252008450,0.19396325,3857.4,3856.8,1.04517485]
[1734252008621,0.19396325,3857.3,3856.8,1.04517485]
[1734252008820,0.19396325,3857.2,3856.8,1.04517485]
[1734252009141,0.19396325,3857.1,3856.8,1.04517485]
[1734252009461,0.19396325,3857.0,3856.8,1.04517485]
[1734252009678,0.2158,3857.5,3856.8,1.04517485]
[1734252009855,0.19399181,3857.4,3856.8,1.04517485]
[1734252010074,0.19399181,3857.3,3856.8,1.04517485]
[1734252010260,0.19399181,3857.2,3856.8,3.63798485]
[1734252010448,0.19399181,3857.1,3856.8,3.63798485]
[1734252010622,0.2158,3857.5,3856.8,3.63798485]
[1734252010821,0.19401641,3857.4,3856.8,3.63798485]
[1734252011147,0.19401641,3857.3,3856.8,3.63798485]
[1734252011379,0.19401641,3857.2,3856.8,3.63798485]
[1734252011534,0.19401641,3857.1,3856.8,3.63798485]
[1734252011732,0.2158,3857.5,3856.8,3.63798485]
[1734252011932,0.19403282,3857.4,3856.8,3.63798485]
[1734252012146,0.2158,3857.5,3856.8,3.63798485]
[1734252012349,0.19403892,3857.4,3856.8,3.63798485]
[1734252012620,0.19403892,3857.3,3856.8,3.63798485]
[1734252012793,0.19403892,3857.2,3857.1,1.04517485]
[1734252014650,0.19403892,3856.9,3856.8,1.04517485]
[1734252014851,0.19403892,3856.9,3856.5,4.04517485]
[1734252015105,0.2158,3857.1,3856.5,4.04517485]
[1734252015290,0.19410292,3857.0,3856.5,4.04517485]
[1734252015469,0.19410292,3856.9,3856.5,4.04517485]
[1734252015676,0.2158,3857.1,3856.5,4.04517485]
[1734252015865,0.19410119,3857.0,3856.5,4.04517485]
[1734252016179,0.19410119,3856.9,3856.5,4.04517485]
[1734252016399,0.2158,3857.1,3856.5,4.04517485]
[1734252016595,0.19410738,3857.0,3856.5,4.04517485]
[1734252016751,0.2158,3857.1,3856.8,1.04517485]
[1734252016954,0.19410172,3857.0,3856.8,1.04517485]
[1734252017274,0.2158,3857.1,3856.8,1.04517485]
[1734252017476,0.19410581,3857.0,3856.8,1.04517485]
[1734252017655,0.2158,3857.1,3856.8,1.04517485]
[1734252017991,0.19410747,3857.0,3856.8,1.04517485]
[1734252018172,0.2158,3857.6,3856.8,1.04517485]
[1734252018479,1.51571751,3857.5,3856.8,1.04517485]
[1734252018715,1.09182606,3857.4,3856.8,1.04517485]
[1734252018990,0.19412016,3857.4,3856.8,1.04517485]
[1734252019156,0.19412016,3857.3,3856.8,1.04517485]
[1734252019358,0.19412016,3857.2,3856.8,1.04517485]
[1734252019581,0.19412016,3857.1,3856.8,1.04517485]
[1734252019780,0.19412016,3857.0,3856.8,1.04517485]
[1734252019984,0.19412016,3856.9,3856.8,1.04517485]
[1734252021440,0.2158,3857.2,3856.8,1.04517485]
[1734252021638,0.19415482,3857.1,3856.8,1.04517485]
[1734252021894,0.19415482,3857.0,3856.8,1.04517485]
[1734252022040,0.19415482,3856.9,3856.8,1.04517485]
[1734252027797,0.2158,3857.2,3856.8,1.04517485]
[1734252028091,1.09292331,3857.1,3856.3,1.04517485]
[1734252028384,1.09292331,3857.0,3856.3,1.04517485]
[1734252028697,0.19416463,3856.9,3856.3,1.04517485]
[1734252028847,0.19416463,3856.8,3856.3,1.04517485]
[1734252029051,0.19416463,3856.7,3856.3,1.04517485]
[1734252029357,0.19416463,3856.6,3856.3,1.04517485]
[1734252029688,0.14779677,3857.1,3856.3,4.04517485]
[1734252029863,1.09293804,3857.0,3856.3,4.04517485]
[1734252030055,0.19413782,3856.9,3856.3,4.04517485]
[1734252030260,0.19413782,3856.8,3856.4,1.25404575]
[1734252030458,0.19413782,3856.7,3856.3,4.04517485]
[1734252030655,1.47796769,3857.2,3856.4,1.25397469]
[1734252030887,2.75261245,3857.1,3856.3,4.04517485]
[1734252031088,2.75261245,3857.1,3856.4,1.25396642]
[1734252031089,0.19412663,3857.0,3856.4,1.25396642]
[1734252031249,0.19412663,3856.9,3856.3,4.04517485]
[1734252031443,0.19412663,3856.8,3856.4,1.25402496]
[1734252031642,0.19412663,3856.7,3856.3,4.04517485]
[1734252031847,0.19412663,3856.6,3856.3,4.04517485]
[1734252032083,1.40045667,3857.1,3856.3,1.04517485]
[1734252032285,2.78380507,3857.0,3856.3,1.04517485]
[1734252032485,0.19411203,3856.9,3856.3,1.04517485]
[1734252032786,0.19411203,3856.8,3856.3,1.04517485]
[1734252032983,0.19411203,3856.7,3856.3,1.04517485]
[1734252033151,0.19411203,3856.6,3856.3,1.04517485]
[1734252033342,0.34230591,3857.0,3856.3,1.04517485]
[1734252033541,0.63538292,3856.9,3856.3,0.94517485]
[1734252033782,0.19409856,3856.8,3856.3,0.94517485]
[1734252033983,0.40989856,3856.7,3856.3,0.94517485]
[1734252034187,0.2158,3856.7,3856.3,0.94517485]
[1734252034491,0.19410853,3856.6,3856.3,0.94517485]
[1734252034695,0.2158,3856.7,3856.3,0.94517485]
[1734252035385,0.19412178,3856.6,3856.3,0.94517485]
[1734252035690,0.2158,3856.7,3856.3,0.94517485]
[1734252035848,0.19412178,3856.6,3856.3,0.94517485]
[1734252036191,0.2158,3856.7,3856.3,0.94517485]
[1734252036409,0.194138,3856.6,3856.3,0.94517485]
[1734252036615,0.2158,3856.7,3856.3,0.94517485]
[1734252036914,0.19413672,3856.6,3856.3,0.94517485]
[1734252037066,0.2158,3856.7,3856.3,0.94517485]
[1734252037375,0.19416052,3856.6,3856.3,0.94517485]
[1734252037575,0.2158,3856.7,3856.3,0.94517485]
[1734252037775,0.19415904,3856.6,3856.3,0.94517485]
[1734252037998,0.2158,3856.7,3856.3,0.94517485]
[1734252038171,0.19416821,3856.6,3856.3,0.94517485]
[1734252038366,0.44128436,3856.9,3856.4,1.25332155]
[1734252038598,0.19416104,3856.8,3856.3,3.94517485]
[1734252038786,0.19416104,3856.7,3856.4,1.25339321]
[1734252038991,0.2158,3857.1,3856.3,3.94517485]
[1734252039173,0.19416351,3857.0,3856.4,1.2533727]
[1734252039370,0.19416351,3856.9,3856.3,3.94517485]
[1734252039576,0.19416351,3856.8,3856.3,3.94517485]
[1734252039818,0.19416351,3856.7,3856.3,3.94517485]
[1734252040122,0.2158,3857.1,3856.3,3.94517485]
[1734252040318,0.34196522,3857.0,3856.3,3.94517485]
[1734252040474,0.19416845,3856.9,3856.4,1.25331232]
[1734252040679,0.19416845,3856.8,3856.3,3.94517485]
[1734252040922,0.19416845,3856.7,3856.3,3.94517485]
[1734252041122,0.14779677,3857.0,3856.3,3.94517485]
[1734252041321,0.35675653,3856.9,3856.3,3.94517485]
[1734252041631,0.19418008,3856.8,3856.3,3.94517485]
[1734252041774,0.19418008,3856.7,3856.3,3.94517485]
[1734252041980,0.16257645,3856.9,3856.3,3.94517485]
[1734252042227,0.1941822,3856.8,3856.3,3.94517485]
[1734252042394,0.1941822,3856.7,3856.3,3.94517485]
[1734252042581,0.16257645,3856.9,3856.3,3.94517485]
[1734252042784,0.19419404,3856.8,3856.3,3.94517485]
[1734252042989,0.19419404,3856.7,3856.3,3.94517485]
[1734252043226,0.16257645,3856.9,3856.3,3.94517485]
[1734252043489,0.19421055,3856.8,3856.3,3.94517485]
[1734252043727,0.19421055,3856.7,3856.3,3.94517485]
[1734252043932,0.16257645,3856.9,3856.3,3.94517485]
[1734252044230,0.1942114,3856.8,3856.3,3.94517485]
[1734252044437,0.1942114,3856.7,3856.3,3.94517485]
[1734252044729,0.16257645,3856.9,3856.3,3.94517485]
[1734252044884,0.19422025,3856.8,3856.3,3.94517485]
[1734252045084,0.19422025,3856.7,3856.3,3.94517485]
[1734252045338,0.19422025,3856.6,3856.3,3.94517485]
[1734252045546,0.16257645,3856.9,3856.1,1.83945257]
[1734252045547,0.2158,3856.8,3856.1,1.07295257]
[1734252045695,0.19422417,3856.7,3856.1,2.29849502]
[1734252045895,0.19422417,3856.6,3855.9,4.07295257]
[1734252046218,0.41002417,3856.5,3855.8,1.04517485]
[1734252046421,0.19422417,3856.4,3855.8,1.04517485]